bitfinex-derivatives/quotes_SOLF0:USTF0_20260302
["timestamp","ask_amount","ask_price","bid_price","bid_amount"]
[1772455208764,11.00866721,83.719,83.686,10.755]
[1772455209267,3.04406744,83.72,83.686,10.755]
[1772455209668,3.04406744,83.74,83.701,10.753]
[1772455209870,14.00866058,83.74,83.701,10.753]
[1772455210069,10.96459314,83.74,83.69,3.04406744]
[1772455210563,14.00866058,83.74,83.69,3.04406744]
[1772455211261,14.00866058,83.74,83.708,10.752]
[1772455212069,3.04406744,83.72,83.67,3.04406744]
[1772455212469,10.9606522,83.729,83.67,3.04406744]
[1772455213468,10.9606522,83.729,83.689,10.754]
[1772455214262,3.04406744,83.75,83.69,3.04406744]
[1772455215372,3.04406744,83.75,83.705,10.752]
[1772455216272,5.46422448,83.749,83.705,10.752]
[1772455217972,8.50829192,83.74,83.705,10.752]
[1772455218270,5.46422448,83.739,83.705,10.752]
[1772455218671,5.4776194,83.729,83.67,3.04406744]
[1772455218872,455.23781772,83.766,83.66,3.04406744]
[1772455218873,5.4776194,83.719,83.66,3.04406744]
[1772455219666,8.52168684,83.7,83.652,22.37246362]
[1772455219975,5.4776194,83.7,83.652,22.37246362]
[1772455220171,5.4776194,83.7,83.671,10.757]
[1772455221275,5.48655913,83.714,83.678,10.756]
[1772455222169,3.04406744,83.71,83.678,10.756]
[1772455222369,5.48251989,83.709,83.678,10.756]
[1772455222776,5.48251989,83.709,83.669,10.757]
[1772455225277,3.04406744,83.73,83.671,2.42043688]
[1772455225571,3.04406744,83.72,83.671,2.42043688]
[1772455225876,3.04406744,83.71,83.675,10.756]
[1772455227576,3.70620461,83.729,83.68,3.04406744]
[1772455227878,3.70620461,83.729,83.681,2.43411982]
[1772455228678,3.70620461,83.719,83.689,10.754]
[1772455228882,3.04406744,83.71,83.667,2.45241003]
[1772455229281,3.04406744,83.71,83.68,10.755]
[1772455229483,3.70620461,83.719,83.68,10.755]
[1772455235291,3.70620461,83.744,83.681,2.47228322]
[1772455235586,3.70620461,83.739,83.668,2.47228322]
[1772455235790,0.00027205,83.71,83.688,10.754]
[1772455235989,3.04406744,83.72,83.688,10.754]
[1772455236692,3.04552701,83.72,83.688,10.754]
[1772455239492,3.04552701,83.72,83.668,2.47228322]
[1772455239493,3.04552701,83.72,83.695,10.754]
[1772455239788,3.04552701,83.72,83.679,3.80979313]
[1772455240595,3.04552701,83.72,83.679,14.56579313]
[1772455241897,3.70620461,83.719,83.679,14.56579313]
[1772455242494,3.70620461,83.709,83.664,3.80979313]
[1772455243192,3.70620461,83.709,83.666,3.80979313]
[1772455244297,3.04552701,83.72,83.679,10.756]
[1772455245090,3.04552701,83.72,83.679,14.56579313]
[1772455246796,3.04552701,83.72,83.686,10.755]
[1772455246997,3.70620461,83.719,83.686,10.755]
[1772455248600,3.70620461,83.719,83.678,10.756]
[1772455248899,3.85961864,83.709,83.678,10.756]
[1772455250592,3.85961864,83.709,83.667,3.57544278]
[1772455251499,3.85961864,83.709,83.668,10.757]
[1772455251693,3.85961864,83.709,83.669,3.57544278]
[1772455252199,3.85961864,83.709,83.657,3.57544278]
[1772455252592,3.85961864,83.709,83.66,3.04552701]
[1772455252793,3.85961864,83.735,83.673,3.57544278]
[1772455253102,3.85961864,83.735,83.681,3.57544278]
[1772455253602,3.85961864,83.735,83.685,3.57544278]
[1772455255093,3.85961864,83.747,83.69,3.57544278]
[1772455255301,3.85961864,83.747,83.691,3.57544278]
[1772455255907,3.85961864,83.747,83.703,3.57544278]
[1772455256801,3.85961864,83.747,83.707,3.57544278]
[1772455257406,3.85961864,83.759,83.71,3.57544278]
[1772455258806,3.85961864,83.749,83.71,3.57544278]
[1772455259819,3.85961864,83.749,83.7,3.04552701]
[1772455260019,3.85961864,83.749,83.696,3.57544278]
[1772455261315,3.85961864,83.749,83.712,10.751]
[1772455265212,3.85961864,83.749,83.707,3.57544278]
[1772455266225,3.85961864,83.749,83.709,10.752]
[1772455267720,3.85961864,83.739,83.681,3.57544278]
[1772455268615,3.04552701,83.73,83.681,3.57544278]
[1772455268816,3.85961864,83.729,83.681,3.57544278]
[1772455269023,3.04552701,83.72,83.686,10.755]
[1772455276127,3.6298991,83.719,83.686,10.755]
[1772455276724,3.6298991,83.719,83.681,3.57544278]
[1772455276725,3.6298991,83.739,83.681,3.65725536]
[1772455276918,3.04552701,83.73,83.681,3.65725536]
[1772455278728,3.6298991,83.739,83.702,10.753]
[1772455279926,3.6298991,83.739,83.71,10.752]
[1772455280229,4.00572441,83.749,83.71,10.752]
[1772455280623,8.98924161,83.764,83.665,21.77092737]
[1772455280624,4.00572441,83.761,83.715,4.01810561]
[1772455280821,3.04552701,83.76,83.715,4.01810561]
[1772455282231,3.04552701,83.76,83.727,10.749]
[1772455283728,4.00572441,83.759,83.727,10.749]
[1772455284527,10.742,83.783,83.665,21.77092737]
[1772455284528,4.00572441,83.749,83.719,10.75]
[1772455284730,3.04552701,83.74,83.701,4.01810561]
[1772455284931,7.05125142,83.73,83.681,4.01810561]
[1772455286235,7.05125142,83.73,83.691,10.754]
[1772455290535,4.00572441,83.73,83.698,10.753]
[1772455291533,4.00572441,83.739,83.698,4.01810561]
[1772455291737,4.00572441,83.729,83.681,4.01810561]
[1772455293330,4.00572441,83.729,83.696,10.753]
[1772455299134,4.00572441,83.719,83.688,10.754]
[1772455300841,3.04447682,83.72,83.691,10.754]
[1772455301044,3.04447682,83.72,83.665,21.77092737]
[1772455301045,7.05020123,83.73,83.692,4.01810561]
[1772455301546,4.00572441,83.729,83.692,4.01810561]
[1772455302244,4.00572441,83.729,83.698,10.753]
[1772455302445,9.55520398,83.758,83.699,4.01810561]
[1772455302446,3.04447682,83.74,83.699,4.01810561]
[1772455302642,7.05020123,83.74,83.699,4.01810561]
[1772455303243,7.05020123,83.74,83.711,10.751]
[1772455304146,0.00047682,83.74,83.721,10.75]
[1772455304749,3.04447682,83.75,83.721,10.75]
[1772455304943,7.05020123,83.75,83.721,10.75]
[1772455305446,7.05020123,83.75,83.712,4.01810561]
[1772455305649,4.00572441,83.749,83.712,4.01810561]
[1772455306152,4.00572441,83.749,83.714,10.751]
[1772455306651,4.00572441,83.749,83.712,4.01810561]
[1772455307247,3.04447682,83.75,83.712,4.01810561]
[1772455307948,4.98240468,83.749,83.712,4.01810561]
[1772455308349,4.98240468,83.739,83.697,10.753]
[1772455308552,4.98240468,83.739,83.694,5.36879931]
[1772455308753,4.98240468,83.719,83.681,5.36879931]
[1772455309552,3.04447682,83.7,83.666,5.36879931]
[1772455309751,8.0268815,83.7,83.666,5.36879931]
[1772455311049,14.75843941,83.749,83.513,96.51965579]
[1772455311050,4.98240468,83.679,83.632,5.36879931]
[1772455312249,3.04447682,83.69,83.632,5.36879931]
[1772455314454,3.04447682,83.69,83.634,5.36879931]
[1772455314655,3.04447682,83.69,83.567,35.86]
[1772455314656,8.0268815,83.7,83.641,5.36879931]
[1772455314853,4.98240468,83.699,83.641,5.36879931]
[1772455316356,4.98240468,83.699,83.645,5.36879931]
[1772455317350,4.98240468,83.699,83.65,5.36879931]
[1772455318359,3.04447682,83.71,83.655,5.36879931]
[1772455318554,4.98240468,83.709,83.655,5.36879931]
[1772455319054,3.04447682,83.69,83.655,5.36879931]
[1772455319655,4.98240468,83.689,83.642,5.36879931]
[1772455320861,4.98240468,83.689,83.646,5.36879931]
[1772455322259,4.98240468,83.689,83.648,10.76]
[1772455323060,4.98240468,83.689,83.656,10.759]
[1772455323258,3.04447682,83.69,83.657,5.36879931]
[1772455323457,4.98240468,83.719,83.661,5.36879931]
[1772455323757,4.98240468,83.719,83.678,5.36879931]
[1772455325263,4.98240468,83.719,83.682,10.755]
[1772455326665,3.04447682,83.72,83.686,5.36879931]
[1772455327863,3.04447682,83.72,83.687,10.755]
[1772455328064,4.98240468,83.728,83.687,10.755]
[1772455328264,3.04447682,83.72,83.687,10.755]
[1772455328566,3.04447682,83.72,83.695,10.754]
[1772455328865,4.98240468,83.728,83.695,10.754]
[1772455330065,4.98240468,83.728,83.687,10.755]
[1772455330763,4.98240468,83.728,83.686,5.36879931]
[1772455331466,470.17319978,83.736,83.688,5.36879931]
[1772455331662,3.04447682,83.75,83.691,5.36879931]
[1772455331863,8.0268815,83.75,83.691,5.36879931]
[1772455332063,3.04447682,83.74,83.696,5.36879931]
[1772455333766,5.80810834,83.739,83.696,5.36879931]
[1772455334070,3.04447682,83.72,83.671,6.12135482]
[1772455334967,3.04447682,83.72,83.674,6.12135482]
[1772455336065,3.04447682,83.71,83.674,6.12135482]
[1772455336568,3.04447682,83.7,83.666,6.12135482]
[1772455337658,5.86354294,83.699,83.656,16.74435395]
[1772455337866,5.86354294,83.699,83.657,5.98535395]
[1772455339162,5.86354294,83.699,83.66,5.98535395]
[1772455340365,5.86354294,83.699,83.667,10.757]
[1772455341669,3.04447682,83.72,83.67,5.98535395]
[1772455343271,5.86354294,83.724,83.683,5.98535395]
[1772455344268,5.86354294,83.724,83.687,10.755]
[1772455345566,5.86354294,83.724,83.694,10.754]
[1772455345873,3.04447682,83.73,83.694,10.754]
[1772455347770,5.86354294,83.729,83.694,10.754]
[1772455347970,5.86354294,83.729,83.687,5.98535395]
[1772455348474,3.04447682,83.72,83.687,5.98535395]
[1772455348678,8.90801976,83.72,83.674,5.98535395]
[1772455348875,5.86354294,83.719,83.674,5.98535395]
[1772455350283,3.04447682,83.72,83.676,5.98535395]
[1772455350573,10.748,83.738,83.676,5.98535395]
[1772455350574,5.86354294,83.729,83.676,5.98535395]
[1772455351278,5.86354294,83.729,83.68,5.98535395]
[1772455351575,3.04447682,83.72,83.68,5.98535395]
[1772455356081,5.86354294,83.729,83.68,5.98535395]
[1772455357280,5.86354294,83.729,83.682,10.755]
[1772455357680,5.86354294,83.729,83.646,22.25220378]
[1772455357985,5.86354294,83.729,83.641,197.59205782]
[1772455357986,3.04447682,83.7,83.641,5.98535395]
[1772455358182,5.86354294,83.703,83.651,5.98535395]
[1772455359293,5.86354294,83.703,83.652,5.98535395]
[1772455360193,3.04667419,83.7,83.653,10.759]
[1772455360396,3.04667419,83.7,83.654,5.98535395]
[1772455360597,8.91021713,83.7,83.654,5.98535395]
[1772455360799,5.86354294,83.699,83.654,5.98535395]
[1772455363792,5.86354294,83.699,83.66,5.98535395]
[1772455364400,3.04667419,83.69,83.66,5.98535395]
[1772455366096,5.86354294,83.699,83.66,5.98535395]
[1772455366693,3.04667419,83.69,83.66,5.98535395]
[1772455367000,3.04667419,83.67,83.631,5.98535395]
[1772455368299,6.44404122,83.669,83.631,5.98535395]
[1772455368504,3.04667419,83.66,83.631,5.98535395]
[1772455368899,3.04667419,83.66,83.61,3.04667419]
[1772455369100,3.04667419,83.64,83.611,6.98562729]
[1772455369306,6.44404122,83.657,83.611,6.98562729]
[1772455369702,3.04667419,83.65,83.611,6.98562729]
[1772455372502,11.09644173,83.692,83.611,6.98562729]
[1772455372503,3.04667419,83.66,83.611,6.98562729]
[1772455372705,6.44404122,83.686,83.631,6.98562729]
[1772455373604,6.44404122,83.686,83.641,6.98562729]
[1772455374505,6.44404122,83.686,83.643,6.98562729]
[1772455375307,6.44404122,83.686,83.644,10.76]
[1772455375506,3.04667419,83.68,83.644,10.76]
[1772455376010,6.44404122,83.686,83.644,10.76]
[1772455376410,6.44404122,83.686,83.648,10.76]
[1772455376906,6.44404122,83.686,83.645,6.98562729]
[1772455377109,3.04667419,83.68,83.645,6.98562729]
[1772455378402,11.09644173,83.722,83.588,21.535]
[1772455378403,9.49071541,83.67,83.628,10.762]
[1772455378910,9.49071541,83.67,83.632,6.98562729]
[1772455379412,10.755,83.686,83.632,6.98562729]
[1772455379708,78.87129398,83.773,83.71,3.04667419]
[1772455379914,14.43429398,83.773,83.74,3.04667419]
[1772455380207,0.00029398,83.773,83.72,3.04667419]
[1772455380608,3.04667419,83.77,83.72,3.04667419]
[1772455381104,3.04667419,83.78,83.72,3.04667419]
[1772455382310,3.04667419,83.79,83.73,3.04667419]
[1772455382511,38.0237727,83.819,83.72,7.59968837]
[1772455382706,38.0237727,83.799,83.69,62.0]
[1772455382902,38.0237727,83.799,83.69,7.59968837]
[1772455383914,38.02917127,83.795,83.716,10.751]
[1772455385806,38.08397649,83.779,83.716,10.751]
[1772455386010,38.08397649,83.779,83.682,463.62313216]
[1772455386011,38.08397649,83.779,83.702,10.753]
[1772455387213,38.0725187,83.759,83.69,10.754]
[1772455387712,38.07800663,83.739,83.678,10.756]
[1772455388602,38.07800663,83.739,83.664,10.758]
[1772455391514,37.99799688,83.736,83.664,10.758]
[1772455392712,38.01453842,83.734,83.664,10.758]
[1772455394019,38.02264617,83.732,83.664,10.758]
[1772455394521,38.02264617,83.732,83.654,10.759]
[1772455394919,38.03154712,83.718,83.61,7.59968837]
[1772455395618,38.03561811,83.7,83.634,10.761]
[1772455396015,38.03561811,83.7,83.61,7.59968837]
[1772455396214,38.03561811,83.7,83.63,7.59968837]
[1772455397418,38.03561811,83.7,83.644,10.76]
[1772455401427,38.03561811,83.7,83.634,10.761]
[1772455402422,3.04798042,83.69,83.634,10.761]
[1772455402623,37.93513067,83.689,83.634,10.761]
[1772455404530,37.93207198,83.702,83.611,21.529]
[1772455404736,37.93207198,83.702,83.63,7.61941956]
[1772455406235,37.93207198,83.702,83.656,10.759]
[1772455407528,37.93207198,83.702,83.663,10.758]
[1772455408326,37.93207198,83.702,83.654,10.759]
[1772455408530,37.93207198,83.702,83.63,7.61941956]
[1772455410039,37.93207198,83.702,83.666,10.757]
[1772455410734,37.93207198,83.702,83.658,10.758]
[1772455412839,37.93207198,83.702,83.666,10.757]
[1772455413536,37.93207198,83.702,83.658,10.758]
[1772455416853,37.93207198,83.702,83.668,10.757]
[1772455417053,37.93207198,83.702,83.633,14.75934422]
[1772455417352,37.93207198,83.702,83.634,14.75934422]
[1772455417747,37.93207198,83.702,83.635,14.75934422]
[1772455418352,37.93207198,83.702,83.659,10.758]
[1772455419756,37.93207198,83.702,83.667,10.757]
[1772455422153,37.93207198,83.702,83.658,10.758]
[1772455423460,37.93207198,83.702,83.649,10.759]
[1772455424448,37.93207198,83.702,83.658,10.758]
[1772455426460,37.94577235,83.699,83.658,10.758]
[1772455426856,37.94577235,83.699,83.65,3.04713056]
[1772455428363,37.94577235,83.699,83.664,10.757]
[1772455429668,37.95663253,83.718,83.664,10.757]
[1772455429867,41.00376309,83.71,83.664,10.757]
[1772455430969,41.00376309,83.71,83.672,10.756]
[1772455431562,41.00376309,83.71,83.664,10.757]
[1772455431871,41.00376309,83.71,83.662,14.75934422]
[1772455432071,37.94402869,83.746,83.67,3.04713056]
[1772455432265,37.94402869,83.729,83.682,14.75934422]
[1772455432464,37.94402869,83.729,83.683,14.75934422]
[1772455432770,37.94402869,83.729,83.699,10.753]
[1772455433066,3.04713056,83.74,83.699,10.753]
[1772455433264,37.93095954,83.741,83.699,10.753]
[1772455433861,37.93241638,83.729,83.688,14.75934422]
[1772455434068,37.93241638,83.729,83.681,14.75934422]
[1772455434771,37.93241638,83.729,83.681,25.51434422]
[1772455434968,37.93241638,83.729,83.681,10.755]
[1772455435166,37.93241638,83.729,83.681,25.51434422]
[1772455435365,37.93241638,83.729,83.681,10.755]
[1772455436365,37.52406652,83.719,83.681,10.755]
[1772455437165,37.52406652,83.719,83.673,14.75934422]
[1772455437469,37.52406652,83.719,83.671,10.757]
[1772455437675,37.52362224,83.709,83.669,14.75934422]
[1772455438165,37.52362224,83.709,83.668,14.75934422]
[1772455438669,37.52362224,83.709,83.65,3.04713056]
[1772455438670,37.52362224,83.709,83.664,10.758]
[1772455439366,37.52362224,83.709,83.664,25.51734422]
[1772455439762,37.52362224,83.709,83.664,10.758]
[1772455440169,37.48461097,83.699,83.656,14.75934422]
[1772455440365,37.48461097,83.699,83.655,14.75934422]
[1772455440566,37.48461097,83.699,83.644,22.13879361]
[1772455440567,37.48461097,83.699,83.656,14.75934422]
[1772455441365,37.48461097,83.699,83.657,10.758]
[1772455441871,37.48342683,83.689,83.648,14.75934422]
[1772455442166,37.48342683,83.689,83.647,14.75934422]
[1772455442363,37.48342683,83.689,83.65,14.75934422]
[1772455443969,37.48342683,83.689,83.646,25.51934422]
[1772455445970,37.48342683,83.689,83.646,10.76]
[1772455446372,37.48954605,83.702,83.65,3.04713056]
[1772455446677,37.48954605,83.702,83.653,14.75934422]
[1772455447371,37.48903476,83.699,83.653,14.75934422]
[1772455447574,37.48903476,83.699,83.652,14.75934422]
[1772455448779,37.48903476,83.699,83.653,14.75934422]
[1772455449284,37.48903476,83.699,83.653,25.51834422]
[1772455451079,37.48903476,83.699,83.654,14.75934422]
[1772455451277,40.6726341,83.71,83.66,3.04713056]
[1772455451778,40.6726341,83.71,83.663,14.75934422]
[1772455452373,40.6726341,83.71,83.67,10.757]
[1772455453981,37.62550354,83.71,83.678,10.756]
[1772455462085,40.6726341,83.71,83.668,10.757]
[1772455462685,40.6726341,83.71,83.675,10.756]
[1772455464390,40.6726341,83.71,83.672,10.757]
[1772455469098,40.6726341,83.71,83.665,25.51634422]
[1772455469298,40.6726341,83.71,83.666,14.75934422]
[1772455470094,37.62550354,83.71,83.67,10.757]
[1772455470294,40.6726341,83.71,83.67,10.757]
[1772455472801,37.91845352,83.689,83.661,14.75934422]
[1772455473002,37.91845352,83.689,83.655,14.75934422]
[1772455473198,37.91845352,83.689,83.651,10.759]
[1772455474496,37.91981848,83.679,83.651,10.759]
[1772455475604,3.04713056,83.69,83.651,10.759]
[1772455475802,37.92054538,83.691,83.66,10.758]
[1772455478098,37.92054538,83.691,83.652,10.759]
[1772455481399,37.86699705,83.689,83.652,10.759]
[1772455483100,37.86699705,83.689,83.652,25.51834422]
[1772455484004,37.86699705,83.689,83.659,10.758]
[1772455486212,40.87832822,83.7,83.659,10.758]
[1772455486411,37.83120969,83.7,83.659,10.758]
[1772455487706,40.87832822,83.7,83.659,10.758]
[1772455488410,37.85634993,83.689,83.651,10.759]
[1772455488806,37.85634993,83.707,83.666,10.757]
[1772455489005,37.85634993,83.699,83.666,10.757]
[1772455492321,37.85634993,83.699,83.658,10.758]
[1772455493912,37.90505888,83.717,83.66,3.04711853]
[1772455494318,37.89942734,83.709,83.66,3.04711853]
[1772455495320,37.89942734,83.709,83.67,10.757]
[1772455499022,37.89942734,83.709,83.662,14.75934422]
[1772455499219,37.89942734,83.709,83.678,10.756]
[1772455500823,37.89942734,83.709,83.67,10.757]
[1772455501423,37.89942734,83.709,83.662,25.51734422]
[1772455502226,37.89942734,83.709,83.665,10.757]
[1772455503130,37.89942734,83.709,83.672,10.756]
[1772455503522,37.89942734,83.709,83.664,14.75934422]
[1772455503523,13.61628026,83.689,83.647,22.33912891]
[1772455503723,13.61628026,83.689,83.636,4.5485709]
[1772455504128,13.61628026,83.689,83.634,199.44240526]
[1772455504129,13.61628026,83.689,83.641,4.63529026]
[1772455504431,13.61628026,83.689,83.644,10.76]
[1772455504632,13.61628026,83.679,83.644,10.76]
[1772455505934,13.61628026,83.679,83.651,10.759]
[1772455506233,3.04711853,83.7,83.651,13.15406402]
[1772455506930,3.04711853,83.69,83.645,13.15406402]
[1772455508135,13.61628026,83.689,83.64,10.761]
[1772455508935,13.61628026,83.679,83.64,10.761]
[1772455511737,13.61628026,83.679,83.648,10.76]
[1772455513239,13.61628026,83.679,83.64,10.761]
[1772455515841,10.753,83.7,83.64,10.761]
[1772455515842,3.04711853,83.7,83.641,14.22069277]
[1772455516441,3.04711853,83.69,83.641,14.22069277]
[1772455517541,3.04711853,83.69,83.647,10.76]
[1772455518042,13.60807265,83.689,83.647,10.76]
[1772455518842,13.60807265,83.689,83.641,14.22069277]
[1772455519442,13.60807265,83.689,83.642,10.76]
[1772455524450,10.755,83.688,83.642,10.76]
[1772455524646,13.60807265,83.687,83.642,10.76]
[1772455526949,13.60807265,83.679,83.642,10.76]
[1772455528951,13.60807265,83.679,83.642,25.50090674]
[1772455530052,13.60807265,83.679,83.643,14.74090674]
[1772455536053,8.89139631,83.689,83.602,22.33197075]
[1772455536254,3.04711853,83.64,83.601,78.85959685]
[1772455536454,3.04711853,83.63,83.601,78.85959685]
[1772455537256,3.04711853,83.63,83.57,3.04711853]
[1772455537257,3.04711853,83.62,83.584,78.82092451]
[1772455537459,3.04711853,83.63,83.584,78.82092451]
[1772455539663,3.04711853,83.63,83.584,89.58892451]
[1772455540162,3.04711853,83.63,83.584,78.82092451]
[1772455540358,3.04711853,83.62,83.584,78.82092451]
[1772455540558,3.04711853,83.63,83.584,78.82092451]
[1772455541761,3.04711853,83.64,83.591,78.85959685]
[1772455542060,3.04711853,83.64,83.591,89.62659685]
[1772455542457,3.05135749,83.64,83.591,89.62659685]
[1772455544568,3.05135749,83.65,83.591,89.62659685]
[1772455545768,3.05135749,83.65,83.6,3.05135749]
[1772455546071,10.759,83.653,83.601,78.84159641]
[1772455546369,3.05135749,83.66,83.601,78.84159641]
[1772455546967,10.758,83.659,83.603,78.79828164]
[1772455547871,10.757,83.669,83.611,78.79617039]
[1772455548171,3.05135749,83.68,83.621,78.79617039]
[1772455548670,3.05135749,83.69,83.631,78.8430118]
[1772455549668,11.09464355,83.716,83.631,78.8430118]
[1772455549669,10.756,83.679,83.631,78.8430118]
[1772455554176,10.756,83.679,83.62,3.05135749]
[1772455554177,10.756,83.679,83.633,78.6858718]
[1772455557970,10.756,83.679,83.641,78.40924999]
[1772455558165,10.755,83.687,83.641,78.40924999]
[1772455558672,3.05135749,83.7,83.585,21.536]
[1772455558673,3.05135749,83.7,83.651,78.44405909]
[1772455559266,10.754,83.695,83.651,78.44405909]
[1772455559770,3.05135749,83.72,83.67,81.49307827]
[1772455559967,3.05135749,83.72,83.67,78.44172078]
[1772455560673,3.05135749,83.71,83.67,78.44172078]
[1772455561376,10.752,83.71,83.67,78.44172078]
[1772455568979,13.80335749,83.71,83.67,78.44172078]
[1772455569274,3.05135749,83.68,83.621,78.68985992]
[1772455570384,10.756,83.674,83.623,78.68872088]
[1772455571176,10.756,83.674,83.624,10.763]
[1772455571385,10.756,83.674,83.625,78.63877519]
[1772455571978,3.05135749,83.68,83.627,78.63749697]
[1772455572478,10.755,83.683,83.631,78.61279799]
[1772455573279,10.755,83.683,83.633,78.61016147]
[1772455575483,3.05135749,83.69,83.633,78.61016147]
[1772455575881,3.05135749,83.69,83.636,78.60611755]
[1772455577086,3.05135749,83.68,83.638,78.56852066]
[1772455577787,3.05135749,83.69,83.638,78.56852066]
[1772455579287,3.05135749,83.69,83.64,78.66904531]
[1772455580292,3.05135749,83.69,83.643,78.66802897]
[1772455580895,3.05135749,83.69,83.646,78.68741219]
[1772455582293,3.05135749,83.69,83.649,78.6749636]
[1772455583793,10.754,83.689,83.649,78.6749636]
[1772455585198,3.05135749,83.68,83.649,78.6749636]
[1772455587392,10.758,83.664,83.626,78.65561336]
[1772455587594,10.758,83.664,83.573,29.64274969]
[1772455587595,3.05135749,83.64,83.585,78.65561336]
[1772455587797,3.05135749,83.61,83.585,78.65561336]
[1772455588003,3.05135749,83.62,83.585,78.65561336]
[1772455589200,3.05135749,83.62,83.571,78.28476495]
[1772455590499,10.764,83.618,83.571,78.28476495]
[1772455591201,13.81635749,83.61,83.571,78.28476495]
[1772455593904,9.55735945,83.663,83.571,78.28476495]
[1772455594102,3.05135749,83.62,83.571,78.28476495]
[1772455595000,3.05135749,83.62,83.573,78.1090809]
[1772455595197,3.05135749,83.63,83.573,78.1090809]
[1772455595394,3.05135749,83.63,83.581,78.10694585]
[1772455596400,9.04693843,83.669,83.581,78.10694585]
[1772455596605,3.05135749,83.63,83.581,78.10694585]
[1772455596804,3.05135749,83.63,83.583,78.21213492]
[1772455598202,10.762,83.629,83.583,78.21213492]
[1772455605911,10.763,83.621,83.583,78.21213492]
[1772455606114,3.0524545,83.64,83.583,78.21213492]
[1772455607215,10.762,83.63,83.583,78.21213492]
[1772455607512,3.0524545,83.64,83.583,78.21213492]
[1772455607915,3.0524545,83.65,83.591,78.12274674]
[1772455608414,10.76,83.647,83.601,78.16687088]
[1772455609018,10.759,83.655,83.601,78.16687088]
[1772455609818,10.759,83.655,83.603,78.16525434]
[1772455610815,10.76,83.648,83.603,78.16525434]
[1772455611019,3.0524545,83.65,83.603,78.16525434]
[1772455612319,3.0524545,83.66,83.603,78.16525434]
[1772455612618,3.0524545,83.65,83.603,78.16525434]
[1772455612822,10.76,83.649,83.603,78.16525434]
[1772455615514,10.759,83.657,83.606,77.97445504]
[1772455617727,10.76,83.642,83.606,77.97445504]
[1772455619112,3.0524545,83.66,83.611,77.96280875]
[1772455620014,18.50756062,83.695,83.61,3.0524545]
[1772455620015,10.758,83.658,83.613,77.96105101]
[1772455620221,3.0524545,83.67,83.613,77.96105101]
[1772455620420,3.0524545,83.68,83.621,78.03183132]
[1772455622021,10.757,83.667,83.622,10.763]
[1772455622320,10.757,83.667,83.623,78.0302342]
[1772455622526,3.0524545,83.68,83.623,78.0302342]
[1772455624025,10.756,83.675,83.625,78.09275618]
[1772455625222,10.756,83.675,83.627,78.10182691]
[1772455625421,10.757,83.668,83.627,78.10182691]
[1772455625822,18.51728464,83.702,83.641,78.10042002]
[1772455626025,31.56844074,83.727,83.671,78.10042002]
[1772455626226,31.56844074,83.727,83.691,78.10042002]
[1772455626421,3.0524545,83.72,83.66,3.0524545]
[1772455626621,10.751,83.718,83.66,3.0524545]
[1772455627428,10.751,83.718,83.661,10.758]
[1772455627830,10.751,83.718,83.66,3.0524545]
[1772455628427,10.751,83.718,83.661,68.93335809]
[1772455629134,10.751,83.718,83.671,68.93335809]
[1772455633132,3.0524545,83.72,83.671,68.93335809]
[1772455633133,10.752,83.708,83.671,68.93335809]
[1772455633333,3.0524545,83.7,83.659,68.89300619]
[1772455633530,3.0524545,83.69,83.659,68.89300619]
[1772455633941,10.754,83.694,83.659,68.89300619]
[1772455638444,10.753,83.702,83.66,3.0524545]
[1772455638647,10.753,83.702,83.661,69.81487005]
[1772455639047,10.752,83.711,83.661,69.81487005]
[1772455643251,32.60230423,83.75,83.661,69.81487005]
[1772455643252,3.0524545,83.71,83.661,69.81487005]
[1772455643447,3.0524545,83.7,83.661,69.81487005]
[1772455644246,10.754,83.696,83.661,69.81487005]
[1772455649254,10.754,83.689,83.661,69.81487005]
[1772455651758,10.753,83.697,83.661,69.81487005]
[1772455653456,10.754,83.69,83.661,69.81487005]
[1772455659255,3.0524545,83.71,83.661,69.81487005]
[1772455659956,3.0524545,83.7,83.661,69.81487005]
[1772455661258,10.755,83.686,83.661,69.81487005]
[1772455673964,10.755,83.686,83.641,69.71881354]
[1772455674757,10.757,83.671,83.641,69.71881354]
[1772455675864,10.756,83.678,83.641,69.71881354]
[1772455676269,8.99403464,83.708,83.651,69.54757162]
[1772455676465,21.502,83.716,83.651,69.54757162]
[1772455676466,3.04725359,83.7,83.651,69.54757162]
[1772455677263,10.755,83.686,83.651,69.54757162]
[1772455678967,8.99403464,83.715,83.661,64.21799755]
[1772455679170,3.04725359,83.71,83.661,64.21799755]